bitfinex/quotes_SOLUSD_20260306
["timestamp","ask_amount","ask_price","bid_price","bid_amount"]
[1772808216864,58.94516599,84.825,84.699,0.28432314]
[1772808216865,10.9896125,84.8,84.707,1.42526637]
[1772808217067,11.0896125,84.81,84.712,1.14094323]
[1772808217267,10.9896125,84.8,84.716,1.42526637]
[1772808217568,10.9896125,84.8,84.699,1.18065148]
[1772808217569,10.9896125,84.79,84.721,1.42526637]
[1772808217779,0.1,84.81,84.727,1.14094323]
[1772808217780,10.9896125,84.78,84.727,1.14094323]
[1772808217976,41.27893948,84.789,84.727,1.42526637]
[1772808218467,11.79398271,84.789,84.727,1.42526637]
[1772808218670,0.14216157,84.788,84.727,1.14094323]
[1772808218852,10.9896125,84.78,84.727,1.14094323]
[1772808219346,10.9896125,84.76,84.719,13.25331307]
[1772808219850,41.29354993,84.759,84.719,1.44961774]
[1772808220057,11.79815712,84.759,84.72,41.31255901]
[1772808220261,11.79676532,84.769,84.721,1.14094323]
[1772808220570,10.9896125,84.76,84.721,1.14094323]
[1772808220751,0.28432314,84.768,84.721,1.14094323]
[1772808220953,41.26920491,84.809,84.721,1.14094323]
[1772808221147,10.9896125,84.78,84.721,1.14094323]
[1772808221509,41.26920491,84.809,84.72,100.33050046]
[1772808221510,10.9896125,84.76,84.72,11.80358829]
[1772808221847,11.79815712,84.759,84.72,11.80358829]
[1772808222048,11.79815712,84.759,84.719,1.44961774]
[1772808222263,10.9896125,84.75,84.719,1.44961774]
[1772808222458,0.28432314,84.758,84.719,1e-08]
[1772808222459,10.9896125,84.73,84.719,1e-08]
[1772808222950,0.28432314,84.729,84.685,0.05555063]
[1772808223153,10.9896125,84.72,84.685,0.05555063]
[1772808223373,10.9896125,84.74,84.687,1.14094323]
[1772808223770,10.9896125,84.72,84.686,11.80832723]
[1772808223955,11.80372761,84.719,84.685,0.05555063]
[1772808224150,0.28432314,84.754,84.686,1.14094323]
[1772808224349,10.9896125,84.72,84.685,0.05555063]
[1772808224558,10.9896125,84.71,84.685,0.05555063]
[1772808224768,0.28432314,84.729,84.685,0.05555063]
[1772808224967,10.9896125,84.72,84.685,0.05555063]
[1772808225147,0.28432314,84.729,84.685,0.05555063]
[1772808225363,10.9896125,84.72,84.685,0.05555063]
[1772808225594,0.28432314,84.729,84.685,0.05555063]
[1772808225595,10.9896125,84.7,84.685,0.05555063]
[1772808225971,11.80651483,84.699,84.685,0.05555063]
[1772808226296,0.28432314,84.719,84.685,0.05555063]
[1772808226297,11.80512106,84.709,84.685,0.05555063]
[1772808226579,10.95035843,84.7,84.685,0.05555063]
[1772808226781,10.95035843,84.68,84.624,1.14094323]
[1772808226960,10.95035843,84.66,84.624,1.14094323]
[1772808227383,10.95035843,84.67,84.624,1.14094323]
[1772808228186,11.81069813,84.669,84.626,1.14094323]
[1772808228574,10.95035843,84.65,84.604,1.14094323]
[1772808228769,10.95035843,84.64,84.604,1.14094323]
[1772808229182,10.95035843,84.63,84.596,11.82088987]
[1772808229688,10.95035843,84.64,84.596,11.82088987]
[1772808230004,11.81488439,84.639,84.598,11.82061041]
[1772808230165,11.81488439,84.639,84.599,1.14094323]
[1772808231195,41.35209536,84.639,84.599,1.14094323]
[1772808231365,10.95035843,84.63,84.588,11.82200784]
[1772808231563,10.95035843,84.63,84.589,1.14094323]
[1772808231789,10.95035843,84.62,84.589,1.14094323]
[1772808231972,11.81628047,84.629,84.589,1.14094323]
[1772808232167,41.35698164,84.629,84.589,1.14094323]
[1772808232367,10.95035843,84.61,84.566,1.14094323]
[1772808232886,10.95035843,84.62,84.566,1.14094323]
[1772808233099,10.95035843,84.6,84.561,1.14094323]
[1772808233594,10.95035843,84.6,84.477,1.18375415]
[1772808233595,10.95035843,84.58,84.536,1.14094323]
[1772808233797,10.95035843,84.6,84.553,12.9678447]
[1772808234089,10.95035843,84.6,84.498,3.69383402]
[1772808234090,11.82047069,84.599,84.556,1.14094323]
[1772808234584,41.37164741,84.599,84.556,1.14094323]
[1772808235281,11.82047069,84.599,84.556,1.14094323]
[1772808235486,10.95035843,84.59,84.556,1.14094323]
[1772808235687,10.95035843,84.58,84.544,1.14094323]
[1772808235874,41.65597055,84.599,84.544,1.14094323]
[1772808235875,10.95035843,84.59,84.544,1.14094323]
[1772808236069,11.82186809,84.589,84.553,11.82690147]
[1772808236269,10.95035843,84.57,84.532,1.14094323]
[1772808236464,10.95035843,84.57,84.496,0.45125101]
[1772808236465,10.95035843,84.57,84.534,1.14094323]
[1772808236789,10.95035843,84.58,84.534,1.14094323]
[1772808237686,41.37653831,84.589,84.534,1.14094323]
[1772808237992,11.82186809,84.589,84.534,1.14094323]
[1772808238167,11.82047069,84.599,84.539,1.42526637]
[1772808238581,11.81781654,84.618,84.542,1.42526637]
[1772808239184,10.95035843,84.61,84.542,1.42526637]
[1772808240184,10.95035843,84.61,84.547,1.14094323]
[1772808240386,9.48941838,84.695,84.547,1.42526637]
[1772808240591,41.34281461,84.658,84.55,3.69383402]
[1772808240779,10.95035843,84.65,84.557,1.14094323]
[1772808240978,0.28432314,84.657,84.557,1.14094323]
[1772808241184,41.34281461,84.658,84.562,0.28432314]
[1772808241393,11.80804836,84.688,84.574,4.82477569]
[1772808241592,10.95035843,84.68,84.594,1.14094323]
[1772808241890,10.95035843,84.68,84.594,1.42526637]
[1772808242191,10.95035843,84.71,84.607,1.14094323]
[1772808242366,10.95035843,84.71,84.611,3.69383402]
[1772808242570,29.51234374,84.711,84.609,0.28432314]
[1772808242571,29.51234374,84.711,84.617,1.14094323]
[1772808242890,10.95035843,84.68,84.617,1.14094323]
[1772808243392,70.82320167,84.718,84.617,1.14094323]
[1772808243686,11.80386694,84.718,84.617,1.14094323]
[1772808244093,10.95035843,84.73,84.628,1.14094323]
[1772808244277,10.95035843,84.73,84.615,4.82477569]
[1772808244278,11.8001062,84.745,84.645,1.14094323]
[1772808244470,41.3003717,84.745,84.645,1.14094323]
[1772808244668,41.3003717,84.745,84.635,4.82477569]
[1772808244669,10.95035843,84.74,84.654,1.42526637]
[1772808244875,10.95035843,84.75,84.656,1.42526637]
[1772808245070,22.74978517,84.75,84.657,1.14094323]
[1772808245286,10.95035843,84.74,84.659,1.14094323]
[1772808245488,52.24831024,84.75,84.659,1.14094323]
[1772808245691,10.95035843,84.74,84.66,1.42526637]
[1772808245890,10.95035843,84.74,84.661,1.14094323]
[1772808246202,11.79815712,84.759,84.667,1.14094323]
[1772808246378,10.95035843,84.77,84.677,1.14094323]
[1772808246581,10.95035843,84.77,84.667,0.28432314]
[1772808246582,11.79565212,84.777,84.684,1.42526637]
[1772808246781,11.79565212,84.777,84.684,1.14094323]
[1772808246987,0.1,84.78,84.704,5.96571892]
[1772808247205,0.1,84.78,84.711,3.69383402]
[1772808247405,0.1,84.81,84.726,3.69383402]
[1772808247697,0.1,84.81,84.738,1.09094323]
[1772808247901,0.1,84.81,84.748,1.09094323]
[1772808248112,0.1,84.81,84.749,1.2331048]
[1772808248275,0.1,84.81,84.755,1.2331048]
[1772808248476,0.1,84.81,84.756,1.2331048]
[1772808248689,0.1,84.81,84.757,1.2331048]
[1772808248912,0.1,84.81,84.759,1.09094323]
[1772808249709,10.95035843,84.8,84.759,1.09094323]
[1772808249912,11.05035843,84.81,84.759,1.09094323]
[1772808250197,10.95035843,84.79,84.741,1.09094323]
[1772808250582,0.1,84.81,84.741,1.2331048]
[1772808250797,0.1,84.81,84.741,1.09094323]
[1772808250798,10.95035843,84.8,84.741,1.09094323]
[1772808251003,10.95035843,84.8,84.742,1.09094323]
[1772808251176,10.95035843,84.79,84.742,1.09094323]
[1772808251385,10.95035843,84.78,84.742,1.09094323]
[1772808251691,10.95035843,84.75,84.718,1.09094323]
[1772808251877,10.95035843,84.75,84.72,11.80352904]
[1772808252303,11.79857051,84.757,84.718,1.09094323]
[1772808252600,10.95035843,84.76,84.729,11.8023345]
[1772808252809,11.79815712,84.759,84.729,11.8023345]
[1772808252979,29.48634537,84.786,84.73,1.09094323]
[1772808253297,10.95035843,84.79,84.731,1.09094323]
[1772808253499,11.79273096,84.798,84.732,0.28432314]
[1772808253692,10.95035843,84.78,84.733,1.09094323]
[1772808253997,10.95035843,84.75,84.72,11.80347953]
[1772808254202,11.79954925,84.749,84.719,1.09094323]
[1772808254602,4.82477569,84.785,84.675,3.00508189]
[1772808254603,10.95035843,84.79,84.724,1.09094323]
[1772808254899,10.95035843,84.8,84.726,1.09094323]
[1772808255098,41.26920491,84.809,84.727,1.2331048]
[1772808255314,41.26920491,84.809,84.729,1.09094323]
[1772808255487,41.26920491,84.809,84.73,1.2331048]
[1772808255804,41.26920491,84.809,84.732,1.09094323]
[1772808255805,10.95035843,84.78,84.732,1.09094323]
[1772808256388,10.95035843,84.77,84.734,1.09094323]
[1772808256607,4.82477569,84.808,84.734,1.09094323]
[1772808256807,10.95035843,84.79,84.734,1.09094323]
[1772808257103,10.95035843,84.77,84.721,1.09094323]
[1772808258006,10.95035843,84.76,84.721,1.09094323]
[1772808258183,10.95035843,84.77,84.721,1.09094323]
[1772808258387,11.79676532,84.769,84.723,1.09094323]
[1772808258813,11.79676532,84.769,84.723,0.39049115]
[1772808259199,41.28867863,84.769,84.723,0.39049115]
[1772808259400,0.28432314,84.799,84.725,3.69383402]
[1772808259713,0.28432314,84.799,84.726,0.28432314]
[1772808260097,10.95035843,84.8,84.726,0.28432314]
[1772808260291,10.95035843,84.79,84.726,0.28432314]
[1772808260492,41.27893948,84.789,84.73,3.69383402]
[1772808260703,41.27893948,84.789,84.727,41.30914583]
[1772808260704,10.95035843,84.78,84.727,41.30914583]
[1772808260899,10.95035843,84.77,84.728,0.74071719]
[1772808261111,10.95035843,84.76,84.716,0.74071719]
[1772808261515,10.95035843,84.75,84.69,0.74071719]
[1772808261692,10.95035843,84.75,84.691,0.74071719]
[1772808262107,3.69383402,84.786,84.691,0.74071719]
[1772808262309,10.95035843,84.75,84.691,0.74071719]
[1772808262610,10.95035843,84.74,84.696,0.74071719]
[1772808263396,41.29842239,84.749,84.696,0.74071719]
[1772808263711,10.95035843,84.74,84.696,0.74071719]
[1772808264413,11.80094171,84.739,84.698,0.74071719]
[1772808264603,11.79968848,84.748,84.698,0.74071719]
[1772808264804,0.28432314,84.747,84.648,11.8136282]
[1772808265011,0.65472484,84.729,84.652,0.28432314]
[1772808265310,0.65472484,84.729,84.651,3.69383402]
[1772808265511,10.95035843,84.74,84.651,3.69383402]
[1772808265815,0.28432314,84.747,84.648,100.4158397]
[1772808265816,0.65472484,84.719,84.648,100.4158397]
[1772808266023,0.65472484,84.719,84.649,0.28432314]
[1772808266326,0.65472484,84.719,84.652,0.28432314]
[1772808266611,11.80245697,84.729,84.657,0.28432314]
[1772808266812,11.80094171,84.739,84.658,0.68318212]
[1772808266998,0.64804554,84.738,84.658,0.68318212]
[1772808267201,11.59840397,84.73,84.661,0.68318212]
[1772808267717,10.95035843,84.72,84.661,0.68318212]
[1772808267916,10.95035843,84.71,84.661,0.68318212]
[1772808268116,0.64429184,84.699,84.654,0.68318212]
[1772808268419,41.32768127,84.689,84.654,0.68318212]
[1772808268597,0.64429184,84.709,84.656,0.68318212]
[1772808268796,0.64429184,84.709,84.655,11.81265134]
[1772808268797,12.4494129,84.709,84.657,0.68318212]
[1772808269017,10.95035843,84.69,84.655,11.81265134]
[1772808269202,0.64056611,84.699,84.655,11.81265134]
[1772808269407,11.80512106,84.709,84.657,0.68318212]
[1772808269611,11.80512106,84.709,84.659,0.96750526]
[1772808269809,11.80363769,84.72,84.66,0.68318212]
[1772808270119,11.80149879,84.735,84.66,0.68318212]
[1772808270424,11.80013915,84.745,84.664,3.69383402]
[1772808270601,11.79946397,84.75,84.666,0.68318212]
[1772808270801,22.7498224,84.75,84.669,0.68318212]
[1772808271105,0.63319737,84.768,84.674,0.68318212]
[1772808271304,10.95035843,84.76,84.677,0.68318212]
[1772808271505,10.95035843,84.75,84.68,0.68318212]
[1772808271706,10.95035843,84.74,84.68,0.68318212]
[1772808271902,0.62754081,84.768,84.68,0.68318212]
[1772808272101,0.62754081,84.749,84.682,0.82512943]
[1772808272515,0.62754081,84.747,84.687,0.68296786]
[1772808272725,0.62754081,84.747,84.688,0.68296786]
[1772808272913,0.62394716,84.749,84.688,0.68296786]
[1772808274205,0.62037979,84.739,84.688,0.68296786]
[1772808274728,0.62037979,84.737,84.69,0.68296786]
[1772808275020,0.61683843,84.737,84.69,0.68296786]
[1772808275212,10.95035843,84.73,84.69,0.68296786]
[1772808275522,0.61683843,84.729,84.689,41.32768127]
[1772808275704,0.61683843,84.729,84.69,0.68296786]
[1772808276028,0.61332279,84.737,84.69,0.68296786]
[1772808276614,11.80135951,84.736,84.692,0.68296786]
[1772808277418,11.79982772,84.747,84.693,0.68296786]
[1772808277621,0.60983262,84.739,84.693,0.68296786]
[1772808278017,10.95035843,84.73,84.693,0.68296786]
[1772808278323,0.60636765,84.729,84.686,11.80819844]
[1772808278530,10.95035843,84.74,84.688,0.68296786]
[1772808278710,11.80094171,84.739,84.69,0.68296786]
[1772808279223,0.60292762,84.738,84.69,0.68296786]
[1772808279424,0.60292762,84.729,84.69,0.68296786]
[1772808279718,10.95035843,84.73,84.69,0.68296786]
[1772808279905,41.30329599,84.739,84.69,0.68296786]
[1772808279906,0.60292762,84.729,84.69,0.68296786]
[1772808280307,10.95035843,84.72,84.68,11.80916391]
[1772808280509,0.59951228,84.729,84.681,0.68296786]
[1772808280710,12.4019004,84.729,84.683,0.68296786]
[1772808281025,0.59612137,84.728,84.683,0.68296786]
[1772808281202,11.80238812,84.729,84.683,0.68296786]
[1772808281831,0.59612137,84.728,84.683,0.68296786]
[1772808282424,41.30822437,84.729,84.682,11.808885]
[1772808282425,0.59275463,84.719,84.682,11.808885]
[1772808282924,11.80247379,84.728,84.674,0.68296786]
[1772808283329,12.39188562,84.728,84.674,0.68296786]
[1772808283528,41.89807011,84.728,84.674,0.68296786]
[1772808283717,0.58941183,84.727,84.674,0.68296786]
[1772808284634,11.80247379,84.728,84.674,0.68296786]
[1772808285108,0.58279704,84.736,84.677,0.68296786]
[1772808285309,11.80122024,84.737,84.68,0.68296786]
[1772808285528,0.58279704,84.736,84.68,0.68296786]
[1772808286551,0.57952456,84.747,84.68,0.68296786]
[1772808286719,0.57952456,84.774,84.681,1.18090244]
[1772808286920,0.57627505,84.749,84.683,0.68296786]
[1772808287125,0.57627505,84.747,84.688,0.68296786]
[1772808287319,0.57627505,84.747,84.689,0.68296786]
[1772808287938,0.57304826,84.729,84.689,0.68296786]
[1772808289141,11.80247379,84.728,84.691,0.68296786]
[1772808290322,0.56666194,84.727,84.679,0.68296786]
[1772808291036,41.30865828,84.728,84.679,0.68296786]
[1772808291037,11.80247379,84.728,84.679,0.68296786]
[1772808291236,29.50263522,84.739,84.681,0.68296786]
[1772808291237,0.56350195,84.725,84.681,0.68296786]
[1772808292123,11.80303101,84.724,84.682,12.49185286]
[1772808292440,11.80303101,84.724,84.66,0.28432314]
[1772808292441,0.56036378,84.709,84.669,0.68296786]
[1772808292743,0.56036378,84.709,84.677,11.80958229]
[1772808293329,0.03429555,84.699,84.648,0.68296786]
[1772808293731,41.31060855,84.724,84.648,0.68296786]
[1772808293931,7.72293958,84.723,84.648,0.68296786]
[1772808294227,10.94366069,84.74,84.631,1.46592326]
[1772808294228,41.31207137,84.721,84.653,0.68296786]
[1772808294444,0.03416591,84.719,84.654,0.68296786]
[1772808294647,7.76331849,84.718,84.654,0.68296786]
[1772808294934,0.03108436,84.716,84.654,0.68296786]
[1772808295245,7.72915258,84.715,84.654,0.68296786]
[1772808295636,10.97321949,84.71,84.654,0.68296786]
[1772808295932,7.72915258,84.709,84.654,0.68296786]
[1772808296135,41.31304665,84.719,84.656,0.91615755]
[1772808296334,7.73600631,84.718,84.659,0.91615755]
[1772808296641,41.31304665,84.719,84.659,0.91615755]
[1772808296642,7.73600631,84.717,84.66,0.63183441]
[1772808296846,7.73600631,84.716,84.66,0.63183441]
[1772808297047,7.73600631,84.715,84.66,0.63183441]
[1772808297353,41.31304665,84.719,84.66,0.63183441]
[1772808297553,11.80372761,84.719,84.66,0.63183441]
[1772808297777,10.94366069,84.74,84.66,0.63183441]
[1772808297778,11.80108097,84.738,84.66,0.63183441]
[1772808298050,11.80108097,84.738,84.658,3.69383402]
[1772808298051,7.7399382,84.737,84.663,0.63183441]
[1772808298263,11.80149879,84.735,84.668,0.63183441]
[1772808298447,7.7399382,84.734,84.669,0.63183441]
[1772808299447,11.80177734,84.733,84.674,0.63183441]
[1772808299649,7.7399382,84.732,84.675,0.63183441]
[1772808300455,10.94366069,84.73,84.675,0.63183441]
[1772808300660,7.7399382,84.729,84.675,0.63183441]
[1772808300967,7.7399382,84.728,84.675,0.63183441]
[1772808301175,41.3062207,84.733,84.675,0.63183441]
[1772808301176,7.75509889,84.727,84.675,0.63183441]
[1772808301350,10.94366069,84.73,84.677,0.63183441]
[1772808301545,10.94366069,84.72,84.677,0.63183441]
[1772808301738,7.75032374,84.719,84.677,0.63183441]
[1772808301944,7.75032374,84.718,84.677,0.63183441]
[1772808302168,5.10909883,84.728,84.677,0.63183441]
[1772808302351,10.94366069,84.7,84.636,0.63183441]
[1772808302538,0.28432314,84.709,84.638,3.69383402]
[1772808302856,7.7487436,84.708,84.64,0.63183441]
[1772808303059,62.2,84.727,84.64,0.63183441]
[1772808303259,7.75447838,84.726,84.643,0.63183441]
[1772808303561,10.94366069,84.72,84.65,0.63183441]
[1772808303738,41.31060855,84.724,84.65,0.63183441]
[1772808303945,7.75003898,84.723,84.65,0.63183441]
[1772808304144,11.80303101,84.724,84.65,0.63183441]
[1772808304145,7.75003898,84.722,84.65,0.63183441]
[1772808304341,10.94366069,84.72,84.65,0.63183441]
[1772808304660,7.75003898,84.719,84.65,0.63183441]
[1772808304960,10.94366069,84.68,84.629,0.63183441]
[1772808305164,10.94366069,84.69,84.635,0.63183441]
[1772808305464,10.94366069,84.68,84.636,11.81530318]
[1772808305663,9.68319715,84.699,84.636,11.81530318]
[1772808305664,11.80768624,84.691,84.64,0.63183441]
[1772808306150,10.94366069,84.68,84.636,11.81530318]
[1772808306344,41.32676146,84.691,84.637,0.63183441]
[1772808306345,11.80768624,84.691,84.637,0.63183441]
[1772808306546,4.82477569,84.712,84.636,41.35356113]
[1772808306547,11.80512106,84.709,84.64,0.63183441]
[1772808306745,7.75577182,84.708,84.641,0.63183441]
[1772808306949,11.79954925,84.749,84.643,0.63183441]
[1772808307262,10.94366069,84.76,84.651,0.63183441]
[1772808307446,11.79676532,84.769,84.672,0.63183441]
[1772808307651,10.94366069,84.76,84.675,0.63183441]
[1772808307851,11.79676532,84.769,84.675,0.63183441]
[1772808308051,10.94366069,84.76,84.675,0.63183441]
[1772808308265,10.94366069,84.75,84.675,0.63183441]
[1772808308462,11.79676532,84.769,84.675,0.63183441]
[1772808308463,9.69376949,84.765,84.675,0.63183441]
[1772808308771,11.79676532,84.769,84.675,0.63183441]
[1772808309066,0.28432314,84.768,84.675,0.63183441]
[1772808309452,0.28432314,84.758,84.68,0.63183441]
[1772808309770,41.29354993,84.759,84.681,0.63183441]
[1772808310346,0.28432314,84.758,84.681,0.63183441]
[1772808310543,10.94366069,84.74,84.681,0.63183441]
[1772808310747,41.29354993,84.759,84.681,0.63183441]
[1772808310748,10.94366069,84.73,84.681,0.63183441]
[1772808311259,10.94366069,84.72,84.676,11.80972176]
[1772808311646,41.31304665,84.719,84.672,11.81027966]
[1772808311840,41.31304665,84.719,84.672,41.33597882]
[1772808312041,41.31304665,84.719,84.673,0.63183441]
[1772808312247,11.8023345,84.729,84.673,0.63183441]
[1772808312474,62.2,84.774,84.672,100.38737715]
[1772808312475,11.79954925,84.749,84.677,0.63183441]
[1772808312684,41.29842239,84.749,84.677,0.63183441]
[1772808312970,11.79954925,84.749,84.677,0.63183441]
[1772808313161,0.28432314,84.748,84.677,0.63183441]
[1772808313352,41.29842239,84.749,84.677,0.63183441]
[1772808313546,11.80094171,84.739,84.68,0.63183441]
[1772808313760,30.89482888,84.78,84.679,0.28432314]
[1772808313761,0.28432314,84.757,84.683,0.63183441]
[1772808313947,11.79606954,84.774,84.683,0.63183441]
[1772808314149,10.94366069,84.76,84.683,0.63183441]
[1772808314551,11.79481735,84.783,84.684,1.18086061]
[1772808314746,11.79481735,84.783,84.686,0.63183441]
[1772808314960,11.79481735,84.783,84.693,0.63183441]
[1772808315172,11.79481735,84.783,84.696,0.63183441]
[1772808315465,11.79481735,84.783,84.698,0.63183441]
[1772808315678,11.79481735,84.783,84.697,0.28432314]
[1772808315679,10.94366069,84.79,84.706,0.63183441]
[1772808315852,29.48272302,84.796,84.706,0.63183441]
[1772808316267,0.1,84.81,84.71,8.51860971]
[1772808316454,11.89107149,84.81,84.723,0.63183441]
[1772808316649,11.89107149,84.81,84.708,0.28432314]
[1772808316650,0.1,84.81,84.736,3.69383402]
[1772808316856,11.04366069,84.84,84.736,3.69383402]
[1772808316857,11.78828244,84.83,84.745,0.63183441]
[1772808317383,10.94366069,84.82,84.745,0.63183441]
[1772808317572,11.78981124,84.819,84.75,0.63183441]
[1772808317874,11.78981124,84.819,84.749,3.69383402]
[1772808317875,10.94366069,84.81,84.751,0.63183441]
[1772808318084,41.26433935,84.819,84.751,0.63183441]
[1772808318085,11.78981124,84.819,84.751,0.63183441]
[1772808318367,10.94366069,84.81,84.751,0.63183441]
[1772808318576,0.28432314,84.818,84.751,0.63183441]
[1772808318777,41.26433935,84.819,84.751,0.63183441]
[1772808318778,11.78981124,84.819,84.751,0.63183441]
[1772808318974,0.2655787,84.831,84.751,0.63183441]
[1772808319272,1e-08,84.831,84.764,0.63183441]
[1772808319456,1e-08,84.831,84.767,0.63183441]
[1772808319773,1e-08,84.831,84.773,0.63183441]
[1772808319954,1e-08,84.831,84.775,0.63183441]
[1772808320358,7.25497661,84.89,84.789,0.63183441]
[1772808320660,9.69376949,84.91,84.814,0.63183441]
[1772808320661,11.77934928,84.895,84.814,0.63183441]
[1772808320865,1e-08,84.891,84.821,0.63183441]
[1772808321180,1e-08,84.891,84.816,3.69383402]
[1772808321181,1e-08,84.891,84.824,0.63183441]
[1772808321381,22.72361121,84.89,84.824,0.63183441]
[1772808321563,22.72361121,84.89,84.828,3.69383402]
[1772808321770,11.77995052,84.89,84.83,0.63183441]
[1772808321958,0.2,84.9,84.835,0.63183441]
[1772808321959,1e-08,84.9,84.835,0.63183441]
[1772808322158,11.77190751,84.948,84.842,0.63183441]
[1772808322375,11.77190751,84.948,84.832,0.28432314]
[1772808322376,11.14366069,84.97,84.863,0.63183441]
[1772808322559,0.2,84.97,84.868,0.63183441]
[1772808322761,0.2,84.97,84.885,0.63183441]
[1772808322975,11.96886641,84.97,84.885,0.63183441]
[1772808323174,0.2,84.97,84.886,4.82477569]
[1772808323476,0.2,84.97,84.927,0.63183441]
[1772808323798,0.2,84.97,84.929,0.77399598]
[1772808324090,0.2,84.97,84.917,11.77607011]
[1772808324091,11.7689981,84.969,84.917,11.77607011]
[1772808324281,10.94366069,84.94,84.89,0.63183441]
[1772808324462,3.69383402,84.966,84.89,0.63183441]
[1772808324778,41.19149336,84.969,84.89,0.63183441]
[1772808325359,0.2,84.97,84.894,0.63183441]
[1772808325573,0.2,84.97,84.896,0.91615755]
[1772808325874,11.7689981,84.969,84.903,0.63183441]
[1772808326073,0.2,84.97,84.905,0.63183441]
[1772808326379,11.7689981,84.969,84.905,0.63183441]
[1772808326579,10.94366069,84.95,84.905,4.68869103]
[1772808326785,10.94366069,84.95,84.905,4.05685662]
[1772808326972,10.94366069,84.93,84.883,0.63183441]
[1772808327486,5.10909883,84.965,84.874,0.63183441]
[1772808327786,5.10909883,84.965,84.799,47.17005657]
[1772808327787,0.28432314,84.918,84.859,0.63183441]
[1772808327955,10.94366069,84.9,84.859,0.63183441]
[1772808328272,10.94366069,84.89,84.846,0.63183441]
[1772808328875,10.94366069,84.89,84.835,11.78758767]
[1772808329076,10.94366069,84.89,84.834,0.63183441]
[1772808329077,10.94366069,84.87,84.819,0.63183441]
[1772808329397,3.69383402,84.907,84.821,11.78944399]
[1772808329557,0.28432314,84.899,84.825,0.63183441]
[1772808329759,0.28432314,84.899,84.827,0.63183441]
[1772808329760,0.28432314,84.889,84.827,0.63183441]
[1772808329985,0.28432314,84.889,84.83,0.63183441]
[1772808330374,10.94366069,84.89,84.83,0.63183441]
[1772808330700,41.22594171,84.898,84.831,0.63183441]
[1772808330877,10.94366069,84.88,84.831,0.63183441]
[1772808331072,10.94366069,84.88,84.819,0.63183441]
[1772808331389,4.82477569,84.896,84.819,0.63183441]
[1772808331689,41.23565587,84.878,84.821,0.63183441]
[1772808331885,0.28432314,84.877,84.821,0.63183441]
[1772808332194,0.28432314,84.877,84.797,0.63183441]
[1772808332195,10.94366069,84.84,84.797,0.63183441]
[1772808332377,10.94366069,84.82,84.782,0.63183441]
[1772808332571,10.94366069,84.82,84.774,11.7960184]
[1772808332772,10.94366069,84.82,84.737,3.69383402]
[1772808332773,10.94366069,84.81,84.757,0.63183441]
[1772808333179,10.94366069,84.8,84.757,0.63183441]
[1772808333379,10.94366069,84.82,84.757,0.63183441]
[1772808333796,22.54,84.799,84.762,0.63183441]
[1772808334297,10.94366069,84.79,84.747,0.63183441]
[1772808334498,10.94366069,84.78,84.736,1.56393852]
[1772808334795,4.82477569,84.798,84.736,1.56393852]
[1772808335093,22.54,84.779,84.737,0.63183441]
[1772808335895,22.54,84.779,84.74,0.63183441]
[1772808336095,11.79551298,84.778,84.74,0.63183441]
[1772808336278,11.79259189,84.799,84.74,0.63183441]
[1772808336682,10.94366069,84.79,84.74,0.63183441]
[1772808337391,41.27407162,84.799,84.74,0.63183441]
[1772808337898,41.27407162,84.799,84.739,0.28432314]
[1772808337899,10.94366069,84.82,84.745,0.63183441]
[1772808338101,167.0,84.89,84.747,0.63183441]
[1772808338102,10.94366069,84.85,84.747,0.63183441]
[1772808338285,167.0,84.89,84.747,0.63183441]
[1772808338286,10.94366069,84.84,84.748,0.63183441]
[1772808338484,10.94366069,84.82,84.748,0.63183441]
[1772808338782,10.94366069,84.79,84.748,0.63183441]
[1772808339400,0.14216157,84.804,84.737,0.63183441]
[1772808339576,10.94366069,84.79,84.741,0.63183441]
[1772808339774,11.79537385,84.779,84.743,0.63183441]
[1772808339985,11.79398271,84.789,84.743,0.63183441]
[1772808340601,10.94366069,84.77,84.727,0.63183441]
[1772808340788,10.94366069,84.77,84.737,11.80122024]
[1772808340988,41.27893948,84.789,84.738,0.63183441]
[1772808341393,10.94366069,84.78,84.738,0.63183441]
[1772808341701,41.27893948,84.789,84.738,0.63183441]
[1772808342200,10.94366069,84.78,84.738,0.63183441]
[1772808342384,10.94366069,84.77,84.738,0.63183441]
[1772808342580,10.94366069,84.78,84.738,0.63183441]
[1772808342790,10.94366069,84.78,84.718,3.69383402]
[1772808342791,10.94366069,84.75,84.68,0.63183441]
[1772808342999,10.94366069,84.75,84.683,0.63183441]
[1772808343303,0.14216157,84.749,84.684,0.63183441]
[1772808343504,10.94366069,84.74,84.684,0.63183441]
[1772808343683,10.94366069,84.73,84.684,0.63183441]
[1772808343999,11.8023345,84.729,84.686,0.63183441]
[1772808344192,29.49885929,84.75,84.687,0.63183441]
[1772808344396,11.79829632,84.758,84.69,0.63183441]
[1772808344595,9.54607804,84.836,84.69,0.63183441]
[1772808344596,29.49182783,84.77,84.69,0.63183441]
[1772808344804,0.28432314,84.779,84.69,0.63183441]
[1772808344805,10.94366069,84.76,84.69,0.63183441]
[1772808344984,10.94366069,84.75,84.69,0.63183441]
[1772808345186,10.94366069,84.74,84.69,0.63183441]
[1772808345804,10.94366069,84.75,84.69,0.63183441]